bitfinex/quotes_BTCUSD_20240717
["timestamp","ask_amount","ask_price","bid_price","bid_amount"]
[1721233704292,0.77542,64481.0,64480.0,0.0643]
[1721233704507,0.465252,64481.0,64480.0,0.0643]
[1721233704683,0.465252,64481.0,64480.0,0.21868174]
[1721233704684,0.00691512,64481.0,64480.0,0.21868174]
[1721233704904,0.16199912,64481.0,64480.0,0.21868174]
[1721233705105,1.09250312,64481.0,64480.0,0.21868174]
[1721233705538,0.78233512,64481.0,64480.0,0.26850991]
[1721233705934,0.78233512,64481.0,64480.0,0.28250991]
[1721233707104,0.78333512,64481.0,64480.0,0.29650991]
[1721233707306,1.09350312,64481.0,64480.0,0.29650991]
[1721233709326,1.09350312,64481.0,64480.0,0.18238174]
[1721233709652,1.40367112,64481.0,64480.0,0.028]
[1721233710298,1.40267112,64481.0,64480.0,0.014]
[1721233710503,1.40367112,64481.0,64480.0,0.024]
[1721233710708,1.40367112,64481.0,64480.0,0.01]
[1721233711104,0.465339,64469.0,64468.0,0.002794]
[1721233711376,0.465339,64469.0,64468.0,0.17217884]
[1721233711628,0.78237086,64469.0,64468.0,0.16938484]
[1721233712586,1.09259686,64469.0,64468.0,0.16938484]
[1721233712790,1.09359686,64469.0,64468.0,0.16338174]
[1721233712998,1.397017,64469.0,64468.0,0.16338174]
[1721233713208,1.397017,64469.0,64468.0,0.009]
[1721233713663,1.397017,64469.0,64467.0,0.000913]
[1721233713664,1.396039,64468.0,64467.0,0.000913]
[1721233714686,1.496039,64468.0,64467.0,0.000913]
[1721233715132,1.80627,64468.0,64467.0,0.000913]
[1721233715363,1.496039,64468.0,64467.0,0.000913]
[1721233715513,1.496039,64468.0,64467.0,0.00484574]
[1721233718361,0.12717479,64482.0,64467.0,0.00484574]
[1721233718362,0.0782,64482.0,64468.0,0.002794]
[1721233718628,0.465339,64469.0,64468.0,0.002794]
[1721233718895,0.775565,64469.0,64468.0,0.002794]
[1721233719103,0.46533,64471.0,64468.0,0.002794]
[1721233719315,0.0782,64482.0,64467.0,0.00484574]
[1721233719316,0.840777,64468.0,64467.0,0.00484574]
[1721233719517,1.589439,64468.0,64467.0,0.00484574]
[1721233719742,2.46428274,64468.0,64467.0,0.00484574]
[1721233720119,1.756347,64465.0,64464.0,7.4e-07]
[1721233720340,2.01072874,64465.0,64464.0,7.4e-07]
[1721233720497,2.34397374,64465.0,64464.0,7.4e-07]
[1721233721323,2.29397374,64465.0,64464.0,7.4e-07]
[1721233721528,1.829347,64465.0,64464.0,7.4e-07]
[1721233721796,1.834347,64465.0,64464.0,7.4e-07]
[1721233721927,1.884347,64465.0,64464.0,7.4e-07]
[1721233722458,1.834347,64465.0,64464.0,7.4e-07]
[1721233723220,1.842347,64465.0,64464.0,0.00100074]
[1721233723979,1.892347,64465.0,64464.0,0.00100074]
[1721233724788,2.51132331,64465.0,64464.0,7.4e-07]
[1721233724986,2.35697374,64465.0,64464.0,7.4e-07]
[1721233725188,1.99672874,64465.0,64464.0,7.4e-07]
[1721233725544,2.04672874,64465.0,64464.0,7.4e-07]
[1721233726554,1.99672874,64465.0,64464.0,7.4e-07]
[1721233727090,1.842347,64465.0,64464.0,7.4e-07]
[1721233727294,2.20107831,64465.0,64464.0,7.4e-07]
[1721233727640,1.756479,64460.0,64459.0,7.4e-07]
[1721233727885,2.36450453,64460.0,64459.0,7.4e-07]
[1721233728084,2.48750453,64460.0,64459.0,7.4e-07]
[1721233728257,2.50327131,64460.0,64459.0,7.4e-07]
[1721233728477,2.50327142,64460.0,64459.0,7.4e-07]
[1721233728842,2.48750453,64460.0,64459.0,0.00100074]
[1721233729043,2.56685479,64460.0,64459.0,0.00100074]
[1721233729448,2.58262315,64460.0,64459.0,0.00100074]
[1721233729769,2.56685479,64460.0,64459.0,0.00100074]
[1721233730146,2.58261985,64460.0,64459.0,0.00100074]
[1721233730356,2.36032974,64460.0,64459.0,0.00100074]
[1721233730558,1.54294156,64460.0,64459.0,0.00100074]
[1721233730790,1.49821,64460.0,64459.0,0.00100074]
[1721233731143,1.50821,64460.0,64459.0,0.00100074]
[1721233731546,1.51021,64460.0,64459.0,0.00100074]
[1721233731763,1.51021,64460.0,64459.0,7.4e-07]
[1721233731967,1.837479,64460.0,64459.0,0.00200074]
[1721233732171,1.52721,64460.0,64459.0,0.00200074]
[1721233732400,1.50621,64460.0,64459.0,0.00100074]
[1721233733275,1.50621,64460.0,64459.0,7.4e-07]
[1721233733276,1.185941,64460.0,64459.0,7.4e-07]
[1721233733621,1.185941,64460.0,64459.0,0.00200074]
[1721233733622,1.095941,64460.0,64459.0,0.00200074]
[1721233733855,1.102941,64460.0,64459.0,0.00200074]
[1721233734040,1.102941,64460.0,64459.0,0.30098248]
[1721233734041,0.007,64460.0,64459.0,0.30098248]
[1721233734242,0.014,64460.0,64459.0,0.33208073]
[1721233734499,0.014,64460.0,64459.0,0.33308073]
[1721233734500,0.024,64460.0,64459.0,0.33308073]
[1721233734749,0.785672,64460.0,64459.0,0.33108073]
[1721233734911,0.785672,64460.0,64459.0,0.33008073]
[1721233734912,1.085941,64460.0,64459.0,0.33008073]
[1721233735083,0.775672,64460.0,64459.0,0.33008073]
[1721233735311,0.777672,64460.0,64459.0,0.33008073]
[1721233736891,1.087941,64460.0,64459.0,7.4e-07]
[1721233737093,1.085941,64460.0,64459.0,7.4e-07]
[1721233737813,1.086941,64460.0,64459.0,0.01400074]
[1721233737980,1.087941,64460.0,64459.0,0.02500074]
[1721233738576,1.086941,64460.0,64459.0,0.01400074]
[1721233738878,1.087941,64460.0,64459.0,0.17738248]
[1721233739096,1.087941,64460.0,64459.0,0.19512073]
[1721233739840,1.087941,64460.0,64459.0,0.19912073]
[1721233740353,0.777672,64460.0,64459.0,0.19912073]
[1721233740497,1.087941,64460.0,64459.0,0.19912073]
[1721233741118,1.062941,64460.0,64459.0,0.19912073]
[1721233741527,0.002,64460.0,64459.0,0.49825773]
[1721233741741,0.002,64460.0,64459.0,0.34312073]
[1721233741942,0.0796,64483.0,64459.0,0.47194334]
[1721233741943,0.155116,64468.0,64459.0,0.47194334]
[1721233742147,0.155114,64469.0,64461.0,0.155132]
[1721233742513,0.310203,64474.0,64462.0,0.28320435]
[1721233742716,0.155118,64467.0,64463.0,0.12882261]
[1721233742907,0.155122,64465.0,64464.0,0.15438174]
[1721233743103,0.155122,64465.0,64459.0,0.16173899]
[1721233743104,0.155125,64464.0,64463.0,0.15438174]
[1721233743338,1.085941,64460.0,64459.0,0.00400074]
[1721233743896,1.085941,64460.0,64459.0,7.4e-07]
[1721233744097,1.085941,64460.0,64459.0,0.00800074]
[1721233744819,1.085941,64460.0,64459.0,7.4e-07]
[1721233744958,1.085941,64460.0,64459.0,0.00400074]
[1721233745819,1.085941,64460.0,64459.0,0.01100074]
[1721233745984,1.49621,64460.0,64459.0,0.01100074]
[1721233746186,1.54621,64460.0,64459.0,0.00700074]
[1721233746394,1.93854601,64460.0,64459.0,0.01100074]
[1721233746601,2.64044632,64460.0,64459.0,0.01100074]
[1721233746823,2.66344632,64460.0,64459.0,0.01100074]
[1721233747021,2.66344632,64460.0,64459.0,0.00700074]
[1721233747218,2.51409675,64460.0,64459.0,0.00800074]
[1721233747679,2.60440775,64460.0,64459.0,0.00100074]
[1721233747862,2.50909675,64460.0,64459.0,7.4e-07]
[1721233748027,2.51409675,64460.0,64459.0,0.00900074]
[1721233748449,2.50882831,64460.0,64459.0,0.00100074]
[1721233748683,2.46809675,64460.0,64459.0,0.00200074]
[1721233748842,2.18482775,64460.0,64459.0,0.00200074]
[1721233749225,2.13482775,64460.0,64459.0,0.00200074]
[1721233749434,1.59487701,64460.0,64459.0,7.4e-07]
[1721233749634,1.59987701,64460.0,64459.0,0.00100074]
[1721233750205,1.59487701,64460.0,64459.0,7.4e-07]
[1721233750323,1.51197701,64460.0,64459.0,7.4e-07]
[1721233750535,1.51197701,64460.0,64459.0,0.00100074]
[1721233750536,1.40121,64460.0,64459.0,0.00100074]
[1721233750889,1.40521,64460.0,64459.0,0.00200074]
[1721233751101,1.40021,64460.0,64459.0,0.00100074]
[1721233751424,1.40121,64460.0,64459.0,0.00100074]
[1721233751555,1.715479,64460.0,64459.0,0.00200074]
[1721233751769,1.711479,64460.0,64459.0,0.00100074]
[1721233751962,1.811479,64460.0,64459.0,0.00100074]
[1721233752167,1.83122654,64460.0,64459.0,0.00200074]
[1721233752370,1.83122654,64460.0,64459.0,0.00100074]
[1721233752566,1.82622654,64460.0,64459.0,7.4e-07]
[1721233753109,1.83605654,64460.0,64459.0,0.00200074]
[1721233753555,1.815309,64460.0,64459.0,0.00100074]
[1721233753756,1.52078461,64460.0,64459.0,0.00100074]
[1721233753863,1.51004,64460.0,64459.0,0.00200074]
[1721233754525,1.50504,64460.0,64459.0,0.00100074]
[1721233755188,1.49704,64460.0,64459.0,7.4e-07]
[1721233755624,1.807309,64460.0,64459.0,7.4e-07]
[1721233755775,2.26178644,64460.0,64459.0,7.4e-07]
[1721233755977,2.35268644,64460.0,64459.0,7.4e-07]
[1721233756181,2.45852951,64460.0,64459.0,0.00100074]
[1721233756424,2.71821907,64460.0,64459.0,0.00100074]
[1721233756676,0.05,64457.0,64430.0,0.002794]
[1721233756885,2.19281607,64460.0,64430.0,0.002794]
[1721233756886,0.465613,64431.0,64430.0,0.002794]
[1721233757089,0.776022,64431.0,64430.0,0.002794]
[1721233757308,0.776022,64431.0,64429.0,0.0663]
[1721233757309,0.465621,64430.0,64429.0,0.0663]
[1721233758173,0.410343,64445.0,64429.0,0.22068174]
[1721233758336,0.155206,64431.0,64430.0,0.15717574]
[1721233758537,0.155206,64431.0,64430.0,0.15438174]
[1721233758740,0.465615,64431.0,64430.0,0.15438174]
[1721233760196,0.466615,64431.0,64430.0,0.16238174]
[1721233760399,0.466615,64431.0,64430.0,0.17538174]
[1721233760614,0.467615,64431.0,64430.0,0.20046951]
[1721233761175,1.088433,64431.0,64430.0,0.17538174]
[1721233762998,0.467615,64431.0,64430.0,0.17538174]
[1721233763869,0.002,64431.0,64430.0,0.17538174]
[1721233764888,0.002,64431.0,64430.0,0.17817574]
[1721233765042,0.002,64431.0,64430.0,0.33369255]
[1721233765242,0.002,64431.0,64430.0,0.8225861]
[1721233765465,0.002,64431.0,64430.0,0.8832861]
[1721233765668,0.002,64431.0,64430.0,0.4176651]
[1721233767088,0.002,64431.0,64430.0,0.5728721]
[1721233767629,0.002,64431.0,64430.0,0.8832861]
[1721233767829,0.002,64431.0,64430.0,0.5728721]
[1721233768102,0.002,64431.0,64430.0,0.8832861]
[1721233768295,0.002,64431.0,64430.0,1.1937001]
[1721233768493,0.002,64431.0,64430.0,1.2437001]
[1721233768695,0.002,64431.0,64430.0,1.68297898]
[1721233769118,0.001,64431.0,64430.0,1.67497841]
[1721233769310,0.001,64431.0,64430.0,1.62497841]
[1721233769747,0.155178,64442.0,64436.0,0.155192]
[1721233769979,0.155172,64445.0,64438.0,0.155186]
[1721233770202,0.155172,64445.0,64437.0,0.20510123]
[1721233770203,0.155176,64443.0,64439.0,0.15717574]
[1721233770436,0.15518,64441.0,64440.0,0.0605]
[1721233770634,0.155179,64442.0,64440.0,0.21488174]
[1721233770850,0.155179,64442.0,64441.0,0.15717574]
[1721233771026,0.155174,64444.0,64441.0,0.18094186]
[1721233771291,0.155175,64443.0,64442.0,0.002794]
[1721233771418,0.155175,64443.0,64442.0,0.15717574]
[1721233771622,0.155175,64443.0,64442.0,0.15438174]
[1721233772769,0.15513108,64443.0,64442.0,0.15438174]
[1721233772985,0.15513108,64443.0,64442.0,0.20011678]
[1721233773301,0.155166,64447.0,64443.0,0.0817]
[1721233773502,0.310326,64449.0,64442.0,0.006]
[1721233773503,0.465526,64443.0,64442.0,0.006]
[1721233773636,0.855577,64443.0,64442.0,0.006]
[1721233774239,1.265928,64443.0,64442.0,0.006]
[1721233774437,1.265928,64443.0,64442.0,0.016]
[1721233774584,1.265928,64443.0,64442.0,0.01]
[1721233774956,1.265928,64443.0,64442.0,0.006]
[1721233775348,0.465621,64430.0,64429.0,0.002794]
[1721233775588,0.776035,64430.0,64429.0,0.17335474]
[1721233775820,0.465621,64430.0,64429.0,0.17056074]
[1721233776473,0.465621,64430.0,64429.0,0.18156074]
[1721233777708,0.776035,64430.0,64429.0,0.011]
[1721233778067,1.086449,64430.0,64429.0,0.011]
[1721233778885,1.086466,64429.0,64428.0,0.009196]
[1721233780512,1.086466,64429.0,64428.0,0.16357774]
[1721233780513,0.776047,64429.0,64428.0,0.16357774]
[1721233780678,0.776047,64429.0,64428.0,0.17493551]
[1721233781068,0.777047,64429.0,64428.0,0.17493551]
[1721233781542,0.777047,64429.0,64428.0,0.32033551]
[1721233781543,0.001,64429.0,64428.0,0.32033551]
[1721233781658,0.155209,64429.0,64428.0,0.32033551]
[1721233782707,0.155209,64429.0,64428.0,0.32333551]
[1721233783125,0.155209,64429.0,64428.0,0.33033551]
[1721233783470,0.1,64438.0,64428.0,0.33033551]
[1721233783471,0.155186,64439.0,64432.0,0.155202]
[1721233783696,0.075,64450.0,64430.0,0.310412]
[1721233783697,0.310364,64441.0,64433.0,0.16027942]
[1721233783896,0.310364,64441.0,64433.0,0.15717574]
[1721233783897,0.155187,64439.0,64433.0,0.15717574]
[1721233784199,0.155184,64440.0,64433.0,0.15717574]
[1721233784371,0.155188,64438.0,64434.0,0.06558223]
[1721233784650,0.155188,64438.0,64436.0,0.002794]
[1721233784850,0.155188,64438.0,64437.0,0.15438174]
[1721233785464,0.1,64452.0,64437.0,0.15438174]
[1721233785465,0.21637479,64457.0,64437.0,0.15438174]
[1721233785666,0.21637479,64457.0,64438.0,0.0247904]
[1721233785667,0.155182,64441.0,64438.0,0.0247904]
[1721233785874,0.155182,64441.0,64440.0,0.002794]
[1721233786102,0.155182,64441.0,64440.0,0.15438174]
[1721233786230,0.155178,64442.0,64441.0,0.064094]
[1721233786436,0.465534,64442.0,64441.0,0.24032895]
[1721233786857,0.385286,64457.0,64441.0,0.24032895]
[1721233787064,0.155166,64447.0,64444.0,0.002794]
[1721233787261,0.155166,64447.0,64446.0,0.002794]
[1721233787433,0.155166,64447.0,64446.0,0.15438174]
[1721233787639,0.155166,64447.0,64446.0,0.18668403]
[1721233787834,0.155164,64448.0,64446.0,0.18668403]
[1721233789812,0.00083,64460.0,64459.0,1.60973804]
[1721233790213,0.00083,64460.0,64459.0,1.48093169]
[1721233790392,0.00083,64460.0,64459.0,1.29946316]
[1721233790580,0.00083,64460.0,64459.0,1.48093169]
[1721233790785,0.00083,64460.0,64459.0,1.65973851]
[1721233791187,0.00083,64460.0,64459.0,1.53093169]
[1721233791634,0.310164,64482.0,64473.0,0.0634]
[1721233791840,0.155091,64479.0,64474.0,0.17902895]
[1721233792065,0.310164,64482.0,64474.0,0.17902895]
[1721233792066,0.155092,64478.0,64474.0,0.17902895]
[1721233793083,0.155092,64478.0,64473.0,0.005]
[1721233793084,1.395909,64474.0,64473.0,0.005]
[1721233793497,1.495909,64474.0,64473.0,0.005]
[1721233793722,1.545909,64474.0,64473.0,0.005]
[1721233793905,1.495909,64474.0,64473.0,0.005]
[1721233794311,0.155147,64455.0,64453.0,0.002794]
[1721233794516,0.155136,64460.0,64454.0,0.25599285]
[1721233794687,0.155139,64459.0,64455.0,0.002794]
[1721233794865,0.15514,64458.0,64456.0,0.15438174]
[1721233795069,0.15514,64458.0,64457.0,0.002794]
[1721233795311,0.15514,64458.0,64457.0,0.15717574]
[1721233795522,0.775698,64458.0,64457.0,0.17633931]
[1721233796677,0.775698,64458.0,64457.0,0.18133931]
[1721233797132,0.38740879,64468.0,64457.0,0.18133931]
[1721233797133,0.0813,64468.0,64457.0,0.18133931]
[1721233797339,0.1,64472.0,64459.0,0.0625]
[1721233797553,0.1,64472.0,64460.0,0.02506333]
[1721233797728,0.465397,64461.0,64460.0,0.02506333]
[1721233797927,0.465397,64461.0,64459.0,0.0625]
[1721233797928,0.155134,64460.0,64459.0,0.0625]
[1721233798150,0.155139,64458.0,64457.0,0.009]
[1721233798517,0.310269,64460.0,64457.0,0.009]
[1721233798747,0.310269,64460.0,64458.0,0.002794]
[1721233798748,0.155138,64459.0,64458.0,0.002794]
[1721233798947,0.775686,64459.0,64458.0,0.15438174]
[1721233799145,0.775686,64459.0,64458.0,0.17734931]
[1721233799926,0.750686,64459.0,64458.0,0.17734931]
[1721233800109,1.06096,64459.0,64458.0,0.02296757]
[1721233800318,1.085959,64459.0,64458.0,0.004]
[1721233800513,1.496233,64459.0,64458.0,0.004]
[1721233800953,1.998707,64459.0,64458.0,0.004]
[1721233801152,2.15308874,64459.0,64458.0,0.004]
[1721233801362,1.086312,64438.0,64437.0,0.002794]
[1721233801769,0.465606,64432.0,64431.0,0.006216]
[1721233801971,0.155207,64430.0,64429.0,0.15438174]
[1721233802197,0.465621,64430.0,64429.0,0.15438174]
[1721233802666,0.465621,64430.0,64429.0,0.18417951]
[1721233803023,0.0637,64443.0,64428.0,0.004196]
[1721233803024,0.0811,64431.0,64428.0,0.004196]
[1721233803219,0.465628,64429.0,64428.0,0.004196]
[1721233803437,0.465628,64429.0,64428.0,0.15857774]
[1721233803438,0.776047,64429.0,64428.0,0.15857774]
[1721233804667,1.086466,64429.0,64428.0,0.15857774]
[1721233805116,1.086466,64429.0,64428.0,0.15957774]
[1721233805117,0.777047,64429.0,64428.0,0.15957774]
[1721233805382,0.156209,64429.0,64428.0,0.17653551]
[1721233805556,0.156209,64429.0,64428.0,0.17553551]
[1721233805557,0.155209,64429.0,64428.0,0.17553551]
[1721233805753,0.465628,64429.0,64428.0,0.17453551]
[1721233805963,0.777047,64429.0,64428.0,0.17453551]
[1721233806160,1.087466,64429.0,64428.0,0.02015377]
[1721233806371,1.086466,64429.0,64428.0,0.004196]
[1721233806535,1.151066,64429.0,64428.0,0.004196]
[1721233806742,1.151066,64429.0,64428.0,0.007196]
[1721233806960,1.251066,64429.0,64428.0,0.008196]
[1721233807572,1.251066,64429.0,64428.0,0.007196]
[1721233807748,1.251066,64429.0,64428.0,0.008196]
[1721233808152,1.186466,64429.0,64428.0,0.16257774]
[1721233808351,0.877047,64429.0,64428.0,0.02345377]
[1721233808549,0.877047,64429.0,64428.0,0.004196]
[1721233808750,0.877047,64429.0,64428.0,0.15957774]
[1721233808952,0.001,64429.0,64428.0,0.22267774]
[1721233809740,0.001,64429.0,64428.0,0.16057774]
[1721233809741,0.466628,64429.0,64428.0,0.16057774]
[1721233809945,0.002,64429.0,64428.0,0.16057774]
[1721233810130,0.001,64429.0,64428.0,0.17463551]
[1721233810334,0.001,64429.0,64428.0,0.25323551]
[1721233810475,0.001,64429.0,64428.0,0.25423551]
[1721233810857,0.001,64429.0,64428.0,0.25323551]
[1721233811084,0.001,64429.0,64428.0,0.40844751]
[1721233811296,0.001,64429.0,64428.0,0.41144751]
[1721233811501,0.001,64429.0,64428.0,0.72187151]
[1721233812126,0.310368,64440.0,64432.0,0.155201]
[1721233812127,0.155186,64439.0,64432.0,0.155201]
[1721233812338,0.155183,64440.0,64434.0,0.0659]
[1721233812693,0.15518,64442.0,64435.0,0.15717574]
[1721233812901,0.1378,64462.0,64441.0,0.15438174]
[1721233813054,0.1378,64462.0,64445.0,0.15517]
[1721233813055,0.155152,64453.0,64445.0,0.15517]
[1721233813260,0.1378,64462.0,64446.0,0.18939837]
[1721233813456,0.465498,64447.0,64446.0,0.18660437]
[1721233813659,0.310265,64461.0,64436.0,0.002794]
[1721233813660,0.46557,64437.0,64436.0,0.002794]
[1721233814044,0.0761,64446.0,64428.0,0.095596]
[1721233814045,0.775962,64436.0,64435.0,0.002794]
[1721233814247,0.07717479,64444.0,64428.0,0.020196]
[1721233814248,0.155204,64431.0,64430.0,0.002794]
[1721233814468,0.776022,64431.0,64430.0,0.16979828]
[1721233814669,0.465613,64431.0,64430.0,0.16979828]
[1721233815078,0.465613,64431.0,64430.0,0.18859771]
[1721233815529,0.465613,64431.0,64430.0,0.20259771]
[1721233815733,0.001,64440.0,64430.0,0.20259771]
[1721233816002,0.31029,64456.0,64430.0,0.20259771]
[1721233816003,0.15519,64438.0,64431.0,0.15717574]
[1721233816210,0.310377,64438.0,64432.0,0.06783226]
[1721233816402,0.155196,64435.0,64433.0,0.15717574]
[1721233816936,0.465592,64434.0,64433.0,0.15717574]
[1721233817143,0.465592,64434.0,64433.0,0.15438174]
[1721233817452,0.1,64445.0,64430.0,0.04521597]
[1721233817453,0.155204,64431.0,64430.0,0.04521597]
[1721233817639,0.776022,64431.0,64430.0,0.18079828]
[1721233817862,0.776022,64431.0,64430.0,0.16979828]
[1721233818434,0.310401,64433.0,64430.0,0.18079828]
[1721233818674,0.155202,64432.0,64431.0,0.15717574]
[1721233818878,0.155202,64432.0,64431.0,0.15438174]
[1721233819086,0.465606,64432.0,64431.0,0.18730277]
[1721233819419,0.155202,64432.0,64431.0,0.18730277]
[1721233819621,0.06,64448.0,64431.0,0.18730277]
[1721233819622,0.310362,64441.0,64431.0,0.18730277]
[1721233819838,0.076,64453.0,64438.0,0.15438174]
[1721233820041,0.155159,64450.0,64443.0,0.155175]
[1721233820250,0.15516,64450.0,64444.0,0.21975713]
[1721233820462,0.155163,64449.0,64444.0,0.21975713]
[1721233820672,0.155164,64448.0,64444.0,0.21975713]
[1721233820876,0.155171,64445.0,64444.0,0.21975713]
[1721233821078,0.310313,64451.0,64444.0,0.15438174]
[1721233821299,0.07717479,64463.0,64445.0,0.065494]
[1721233821513,0.310271,64460.0,64449.0,0.310318]
[1721233821755,0.310271,64460.0,64451.0,0.155156]
[1721233821756,0.155142,64457.0,64451.0,0.155156]
[1721233821997,0.155142,64457.0,64452.0,0.227581]
[1721233822237,0.155142,64457.0,64452.0,0.24299754]
[1721233822436,0.310222,64470.0,64452.0,0.24299754]
[1721233822437,0.31024,64467.0,64458.0,0.220139]
[1721233822658,0.00183,64459.0,64458.0,0.68479974]
[1721233822939,0.00183,64459.0,64458.0,1.6086602]
[1721233823146,0.00183,64459.0,64458.0,1.70654276]
[1721233823268,0.00183,64459.0,64458.0,1.0098823]
[1721233823488,0.00183,64459.0,64458.0,0.2672643]
[1721233823489,0.156967,64459.0,64458.0,0.2672643]
[1721233823703,0.156967,64459.0,64458.0,0.15438174]
[1721233823704,0.777515,64459.0,64458.0,0.15438174]
[1721233823920,0.467241,64459.0,64458.0,0.15438174]
[1721233824302,0.777515,64459.0,64458.0,0.15438174]
[1721233824503,0.776515,64459.0,64458.0,0.17181991]
[1721233824761,0.776515,64459.0,64458.0,0.17781991]
[1721233824971,0.466241,64459.0,64458.0,0.17581991]
[1721233825186,0.466241,64459.0,64458.0,0.16981991]
[1721233825388,0.467241,64459.0,64458.0,0.16981991]
[1721233825532,0.777515,64459.0,64458.0,0.16981991]
[1721233826141,0.778515,64459.0,64458.0,0.16981991]
[1721233826508,0.777515,64459.0,64458.0,0.16981991]
[1721233826671,0.777515,64459.0,64458.0,0.01543817]
[1721233826672,1.087789,64459.0,64458.0,0.01543817]
[1721233827045,1.087789,64459.0,64452.0,0.01541654]
[1721233827046,1.22576,64453.0,64452.0,0.01541654]
[1721233827250,1.536063,64453.0,64452.0,0.01541654]
[1721233828379,1.536063,64453.0,64452.0,0.02041654]
[1721233828800,1.536063,64453.0,64452.0,0.02141654]
[1721233829028,1.22676,64453.0,64452.0,0.02241654]
[1721233829825,1.22576,64453.0,64452.0,0.01641654]
[1721233830230,0.155151,64453.0,64452.0,0.16979828]
[1721233830426,0.161151,64453.0,64452.0,0.19395811]
[1721233830629,0.781757,64453.0,64452.0,0.03957637]
[1721233830829,1.09206,64453.0,64452.0,0.01641654]
[1721233831065,1.09285211,64453.0,64452.0,0.01541654]
[1721233831239,1.08606,64453.0,64452.0,0.01541654]
[1721233831436,1.493563,64453.0,64452.0,0.01741654]
[1721233831647,1.551163,64453.0,64452.0,0.01641654]
[1721233831883,1.551163,64453.0,64452.0,0.01541654]
[1721233832222,1.552163,64453.0,64452.0,0.01541654]
[1721233832353,0.155187,64438.0,64437.0,0.002794]
[1721233832554,0.155187,64438.0,64437.0,0.01541654]
[1721233832555,0.465562,64438.0,64437.0,0.01541654]
[1721233832764,1.086312,64438.0,64437.0,0.01541654]
[1721233834839,1.086312,64438.0,64437.0,0.02541654]
[1721233835050,1.496687,64438.0,64437.0,0.03141654]
[1721233835246,1.496687,64438.0,64437.0,0.02141654]
[1721233835627,1.086312,64438.0,64437.0,0.02141654]
[1721233835813,1.086312,64438.0,64437.0,0.02441654]
[1721233836009,1.086312,64438.0,64437.0,0.02141654]
[1721233836232,1.087312,64438.0,64437.0,0.02141654]
[1721233836590,1.091312,64438.0,64437.0,0.02241654]
[1721233837138,1.090312,64438.0,64437.0,0.01641654]
[1721233837540,1.099312,64438.0,64437.0,0.01741654]
[1721233837738,1.095312,64438.0,64437.0,0.001]
[1721233837940,0.787937,64438.0,64437.0,0.15538174]
[1721233838219,0.778937,64438.0,64437.0,0.17091991]
[1721233838385,0.775937,64438.0,64437.0,0.16991991]
[1721233838631,0.777937,64438.0,64437.0,0.16991991]
[1721233838826,1.088312,64438.0,64437.0,0.17091991]
[1721233839249,1.088312,64438.0,64437.0,0.01653817]
[1721233839451,1.088312,64438.0,64437.0,0.001]
[1721233839654,1.398687,64438.0,64437.0,0.001]
[1721233842515,1.709062,64438.0,64437.0,0.001]
[1721233843275,1.707062,64438.0,64437.0,0.001]
[1721233843726,1.721062,64438.0,64437.0,0.002]
[1721233844132,1.707062,64438.0,64437.0,0.001]
[1721233844502,1.707062,64438.0,64418.0,0.002794]
[1721233844503,1.086466,64429.0,64418.0,0.002794]
[1721233844685,1.086466,64429.0,64428.0,0.01961254]
[1721233845525,0.465628,64429.0,64428.0,0.01961254]
[1721233845974,0.776047,64429.0,64428.0,0.01961254]
[1721233846790,0.003,64438.0,64428.0,0.17399428]
[1721233846997,0.465621,64430.0,64429.0,0.17457517]
[1721233847192,0.465621,64430.0,64429.0,0.17178117]
[1721233847623,0.155207,64430.0,64429.0,0.17178117]
[1721233848206,0.155207,64430.0,64429.0,0.18078117]
[1721233849144,0.31039,64435.0,64429.0,0.18078117]
[1721233849145,0.310398,64434.0,64429.0,0.18078117]
[1721233849374,0.310398,64434.0,64430.0,0.02283337]
[1721233849578,0.155204,64432.0,64431.0,0.15438174]
[1721233849717,0.155202,64432.0,64431.0,0.15438174]
[1721233850375,0.465606,64432.0,64431.0,0.15438174]
[1721233850526,0.77601,64432.0,64431.0,0.17556451]
[1721233850915,0.155209,64429.0,64428.0,0.01961254]
[1721233851025,0.465628,64429.0,64428.0,0.17399428]
[1721233851639,0.776047,64429.0,64428.0,0.17399428]
[1721233851838,1.086466,64429.0,64428.0,0.01961254]
[1721233852099,1.086466,64429.0,64428.0,0.02961254]
[1721233852597,1.086466,64429.0,64428.0,0.01961254]
[1721233853238,0.776047,64429.0,64428.0,0.17399428]
[1721233853575,0.776047,64429.0,64428.0,0.19139371]
[1721233854200,1.086466,64429.0,64428.0,0.01961254]
[1721233854413,1.638985,64429.0,64428.0,0.01961254]
[1721233854608,1.638985,64429.0,64428.0,0.004196]
[1721233854609,1.79336674,64429.0,64428.0,0.004196]
[1721233854808,1.79336674,64429.0,64428.0,0.00614036]
[1721233854809,1.94671631,64429.0,64428.0,0.00614036]
[1721233855062,2.25713531,64429.0,64428.0,0.00614036]
[1721233855410,2.12689336,64429.0,64428.0,0.00714036]
[1721233855661,2.12689544,64429.0,64428.0,0.00714036]
[1721233855861,1.81347644,64429.0,64428.0,0.00414036]
[1721233856094,1.91469248,64429.0,64428.0,0.00414036]
[1721233856265,1.89358278,64429.0,64428.0,0.00414036]
[1721233856497,1.86129658,64429.0,64428.0,0.00614036]
[1721233856645,1.80936674,64429.0,64428.0,0.00514036]
[1721233857260,1.654985,64429.0,64428.0,0.00514036]
[1721233857422,1.640985,64429.0,64428.0,0.00414036]
[1721233857627,1.265366,64429.0,64428.0,0.00514036]
[1721233857822,1.279366,64429.0,64428.0,0.00614036]
[1721233858074,1.182366,64429.0,64428.0,0.00614036]
[1721233858265,1.140366,64429.0,64428.0,0.00514036]
[1721233858473,1.143366,64429.0,64428.0,0.00614036]
[1721233858683,1.157366,64429.0,64428.0,0.00714036]
[1721233858908,1.075466,64429.0,64428.0,0.00514036]
[1721233859090,1.078466,64429.0,64428.0,0.00614036]
[1721233859461,1.178466,64429.0,64428.0,0.00614036]
[1721233859666,1.488885,64429.0,64428.0,0.00614036]
[1721233860287,1.178466,64429.0,64428.0,0.00614036]
[1721233860494,1.164466,64429.0,64428.0,0.00514036]
[1721233860713,1.474885,64429.0,64428.0,0.00514036]
[1721233860903,1.474885,64429.0,64428.0,0.00614036]
[1721233860904,1.488885,64429.0,64428.0,0.00614036]